bitfinex-derivatives/quotes_BTCF0:USTF0_20250906
["timestamp","ask_amount","ask_price","bid_price","bid_amount"]
[1757127638906,0.03791,111260.0,111250.0,0.4334281]
[1757127639102,0.03791,111260.0,111250.0,1.21319319]
[1757127639612,0.03791,111260.0,111250.0,1.13285188]
[1757127641306,0.03791,111260.0,111250.0,1.21318139]
[1757127648624,0.01507,111260.0,111250.0,1.21318139]
[1757127648825,0.002,111260.0,111250.0,1.21318139]
[1757127649417,0.01593,111260.0,111250.0,1.21318139]
[1757127649923,0.01593,111260.0,111250.0,1.13285188]
[1757127650524,0.01593,111260.0,111250.0,0.32005188]
[1757127650723,0.03925,111260.0,111250.0,1.13281188]
[1757127651928,0.03925,111260.0,111250.0,1.21312931]
[1757127652227,0.03925,111260.0,111250.0,0.40036931]
[1757127652421,0.03925,111260.0,111250.0,1.21312931]
[1757127653021,0.01593,111260.0,111250.0,1.21312931]
[1757127654230,0.03925,111260.0,111250.0,0.40036931]
[1757127654428,0.03925,111260.0,111250.0,1.21312931]
[1757127654731,0.03925,111260.0,111250.0,0.40036931]
[1757127654925,0.03925,111260.0,111250.0,1.21312931]
[1757127655430,0.01593,111260.0,111250.0,1.21312931]
[1757127655630,0.002,111260.0,111250.0,1.30300961]
[1757127655831,0.002,111260.0,111250.0,1.13281188]
[1757127656032,0.002,111260.0,111250.0,1.21311986]
[1757127658632,0.001,111260.0,111250.0,1.21311986]
[1757127658832,0.001,111260.0,111250.0,1.21411986]
[1757127659438,0.001,111260.0,111250.0,1.61409288]
[1757127660332,0.001,111260.0,111250.0,1.86409288]
[1757127660633,0.01416,111270.0,111250.0,1.86409288]
[1757127660835,0.01416,111270.0,111260.0,0.78410362]
[1757127661033,0.03728,111270.0,111260.0,0.78410362]
[1757127663938,0.03728,111270.0,111260.0,0.78510362]
[1757127664236,0.03728,111270.0,111260.0,0.78610362]
[1757127665931,0.03728,111270.0,111260.0,0.72188966]
[1757127666236,0.03728,111270.0,111260.0,0.80219764]
[1757127669542,0.03728,111270.0,111260.0,1.61671764]
[1757127669841,0.03728,111270.0,111260.0,1.17646483]
[1757127670240,0.03728,111270.0,111260.0,1.25677281]
[1757127671439,0.01396,111270.0,111260.0,1.25677281]
[1757127672035,0.01396,111270.0,111260.0,1.61671764]
[1757127674440,0.01396,111270.0,111260.0,0.80219764]
[1757127674641,0.01396,111270.0,111260.0,1.61651764]
[1757127674943,0.01396,111270.0,111260.0,1.53620966]
[1757127675637,0.01396,111270.0,111260.0,1.61651764]
[1757127677039,0.03728,111270.0,111260.0,0.08230798]
[1757127677339,0.03728,111270.0,111260.0,1.25645281]
[1757127678838,0.01286,111280.0,111260.0,1.61639764]
[1757127679143,0.03534,111280.0,111270.0,0.78409768]
[1757127679343,0.03514,111280.0,111270.0,0.78409768]
[1757127687444,0.03514,111280.0,111270.0,0.06420802]
[1757127687652,0.64508483,111280.0,111270.0,0.06420802]
[1757127687956,0.03547,111270.0,111260.0,0.06420802]
[1757127688252,0.39541483,111270.0,111260.0,0.42415285]
[1757127689154,0.39541483,111270.0,111260.0,0.42615285]
[1757127694854,0.28547,111270.0,111260.0,0.36194483]
[1757127695054,0.64541483,111270.0,111260.0,0.36194483]
[1757127695756,0.28547,111270.0,111260.0,0.36194483]
[1757127696161,0.64541483,111270.0,111260.0,0.36194483]
[1757127697459,0.28547,111270.0,111260.0,0.36194483]
[1757127697653,0.64541483,111270.0,111260.0,0.36194483]
[1757127698860,0.28547,111270.0,111260.0,0.36194483]
[1757127699061,0.64541483,111270.0,111260.0,0.36194483]
[1757127699261,0.39541483,111270.0,111260.0,0.36194483]
[1757127699462,0.03547,111270.0,111260.0,0.36194483]
[1757127700759,0.39541483,111270.0,111260.0,0.36194483]
[1757127706060,0.39541483,111270.0,111260.0,0.42615285]
[1757127707763,0.03547,111270.0,111260.0,0.42615285]
[1757127707964,0.39541483,111270.0,111260.0,0.42615285]
[1757127709267,0.39541483,111270.0,111260.0,0.36194483]
[1757127709565,0.03547,111270.0,111260.0,0.36194483]
[1757127712070,0.03547,111270.0,111260.0,0.002]
[1757127712268,0.03547,111270.0,111260.0,0.36194483]
[1757127714869,0.03547,111270.0,111260.0,0.42615285]
[1757127717874,0.03547,111270.0,111260.0,0.36194483]
[1757127721584,0.03547,111270.0,111260.0,0.32201878]
[1757127722283,0.03547,111270.0,111260.0,0.57201878]
[1757127725586,0.03547,111270.0,111260.0,0.252]
[1757127725787,0.03547,111270.0,111260.0,0.57201878]
[1757127729291,0.03547,111270.0,111260.0,0.002]
[1757127733193,0.03547,111270.0,111260.0,0.001]
[1757127734190,0.03547,111270.0,111250.0,0.400462]
[1757127734395,0.0369,111260.0,111250.0,0.400462]
[1757127735090,0.0369,111260.0,111250.0,0.08493322]
[1757127735288,0.0369,111260.0,111250.0,0.00462524]
[1757127736090,0.0369,111260.0,111250.0,0.00562524]
[1757127736495,0.0369,111260.0,111250.0,0.00662524]
[1757127739396,0.0369,111260.0,111250.0,0.32664402]
[1757127742901,0.0369,111260.0,111250.0,0.00662524]
[1757127743103,0.0369,111260.0,111250.0,0.32664402]
[1757127745806,0.0369,111260.0,111250.0,0.00662524]
[1757127745998,0.0369,111260.0,111250.0,0.32664402]
[1757127749104,0.0369,111260.0,111250.0,0.00662524]
[1757127749504,0.0369,111260.0,111250.0,0.32664402]
[1757127750706,0.0369,111260.0,111250.0,0.00662524]
[1757127752510,0.0369,111260.0,111250.0,0.32664402]
[1757127754214,0.0369,111260.0,111250.0,0.00662524]
[1757127754414,0.0369,111260.0,111250.0,0.32664402]
[1757127761223,0.0369,111260.0,111250.0,0.00662524]
[1757127761422,0.0369,111260.0,111250.0,0.32664402]
[1757127766125,0.0369,111260.0,111250.0,0.00662524]
[1757127766528,0.0369,111260.0,111250.0,0.32664402]
[1757127767726,0.0369,111260.0,111250.0,0.00662524]
[1757127770726,0.0369,111260.0,111250.0,0.32664402]
[1757127771228,0.0369,111260.0,111250.0,0.00662524]
[1757127771628,0.0369,111260.0,111250.0,0.32664402]
[1757127773428,0.0369,111260.0,111250.0,0.00662524]
[1757127781439,0.39702404,111260.0,111250.0,0.36674928]
[1757127782937,1.21126404,111260.0,111250.0,0.36674928]
[1757127784733,0.85102,111260.0,111250.0,0.36674928]
[1757127786935,0.85102,111260.0,111250.0,0.00662524]
[1757127787341,0.85102,111260.0,111250.0,0.36674928]
[1757127787538,0.85102,111260.0,111250.0,0.00662524]
[1757127787739,0.85102,111260.0,111250.0,0.36674928]
[1757127787941,0.85114,111260.0,111250.0,0.00662524]
[1757127788244,0.85114,111260.0,111250.0,0.36674928]
[1757127789439,1.21126404,111260.0,111250.0,0.36674928]
[1757127793044,0.39702404,111260.0,111250.0,0.36674928]
[1757127793244,0.85118,111260.0,111250.0,0.36674928]
[1757127793446,1.21130404,111260.0,111250.0,0.36674928]
[1757127799545,0.85118,111260.0,111250.0,0.36674928]
[1757127799751,1.21106404,111260.0,111250.0,0.36674928]
[1757127806859,1.21082404,111260.0,111250.0,0.36674928]
[1757127821176,0.39702404,111260.0,111250.0,0.36674928]
[1757127821474,1.23244788,111260.0,111250.0,0.36674928]
[1757127830685,1.21066404,111260.0,111250.0,0.36674928]
[1757127833380,1.21066404,111260.0,111250.0,0.00662524]
[1757127833579,1.21066404,111260.0,111250.0,0.36674928]
[1757127836190,1.23245019,111260.0,111250.0,0.36674928]
[1757127838893,1.23245019,111260.0,111250.0,0.00662524]
[1757127839090,1.23245019,111260.0,111250.0,0.36674928]
[1757127842788,1.21066404,111260.0,111250.0,0.36674928]
[1757127843491,1.21066404,111260.0,111250.0,0.00662524]
[1757127843492,0.85054,111260.0,111250.0,0.00662524]
[1757127856913,0.0369,111260.0,111250.0,0.00662524]
[1757127857210,0.38398,111260.0,111250.0,0.00662524]
[1757127858205,0.0369,111260.0,111250.0,0.00662524]
[1757127858414,0.85046,111260.0,111250.0,0.00662524]
[1757127862811,0.0369,111260.0,111250.0,0.00662524]
[1757127863010,0.6877,111260.0,111250.0,0.32676022]
[1757127869021,0.0369,111260.0,111250.0,0.32676022]
[1757127875023,0.0369,111260.0,111250.0,0.00662524]
[1757127875223,0.0369,111260.0,111250.0,0.32676022]
[1757127888936,0.0369,111260.0,111250.0,0.00662524]
[1757127889141,0.0369,111260.0,111250.0,0.32676022]
[1757127901151,0.01319,111270.0,111250.0,0.7469485]
[1757127901152,0.0358,111270.0,111250.0,0.7469485]
[1757127901355,0.0358,111270.0,111260.0,0.40048582]
[1757127901652,0.0356,111270.0,111260.0,0.32013498]
[1757127903153,0.0356,111270.0,111260.0,0.32462498]
[1757127905457,0.0356,111270.0,111260.0,0.36446899]
[1757127912859,0.01299,111270.0,111260.0,0.81432018]
[1757127913163,0.01286,111280.0,111260.0,1.14467102]
[1757127913360,0.03547,111280.0,111270.0,0.71995798]
[1757127913662,0.03527,111280.0,111270.0,0.71995798]
[1757127914563,0.03727,111280.0,111270.0,0.71995798]
[1757127915460,0.03827,111280.0,111270.0,0.71995798]
[1757127919367,0.03827,111280.0,111270.0,0.72444798]
[1757127929472,0.03827,111280.0,111270.0,0.73342354]
[1757127929667,0.03827,111280.0,111270.0,0.72444798]
[1757127933382,0.03827,111280.0,111270.0,0.73353749]
[1757127933983,0.03827,111280.0,111270.0,0.72444798]
[1757127938186,0.03827,111280.0,111270.0,0.80479882]
[1757127942991,0.03827,111280.0,111270.0,0.72444798]
[1757127943379,0.03827,111280.0,111270.0,0.81431218]
[1757127944187,0.03827,111280.0,111270.0,0.72444798]
[1757127947494,0.03827,111280.0,111270.0,0.00449]
[1757127947796,0.03827,111280.0,111270.0,0.72444798]
[1757127949895,0.03827,111280.0,111270.0,0.80479882]
[1757127950291,0.03727,111280.0,111270.0,0.80479882]
[1757127950487,0.03827,111280.0,111270.0,0.80479882]
[1757127951088,0.03727,111280.0,111270.0,0.80479882]
[1757127951294,0.03527,111280.0,111270.0,0.80479882]
[1757127951986,0.03527,111280.0,111270.0,0.72444798]
[1757127952796,0.03527,111280.0,111270.0,0.80479882]
[1757127952996,0.03527,111280.0,111270.0,0.44481983]
[1757127953296,0.03527,111280.0,111270.0,0.72444798]
[1757127956796,0.03527,111280.0,111270.0,0.36446899]
[1757127963199,0.03527,111280.0,111270.0,0.00449]
[1757127963400,0.03527,111280.0,111270.0,0.36446899]
[1757127966504,0.03527,111280.0,111270.0,0.00449]
[1757127966702,0.03527,111280.0,111270.0,0.36446899]
[1757127967502,0.03527,111280.0,111270.0,0.30881844]
[1757127974519,0.03527,111280.0,111270.0,0.2284676]
[1757127982032,0.03527,111280.0,111270.0,0.00449]
[1757127982330,0.03527,111280.0,111270.0,0.2284676]
[1757127986829,0.03527,111280.0,111270.0,0.00449]
[1757127986830,0.5092476,111280.0,111270.0,0.00449]
[1757127987638,0.53097788,111280.0,111270.0,0.00449]
[1757127988732,1.34429788,111280.0,111270.0,0.00449]
[1757127990139,1.3225676,111280.0,111270.0,0.00449]
[1757127990439,1.34425615,111280.0,111270.0,0.00449]
[1757127992233,1.3225676,111280.0,111270.0,0.00449]
[1757127992633,0.01279,111260.0,111250.0,0.00023524]
[1757127992834,0.03497,111260.0,111250.0,0.00013524]
[1757127993039,0.84821,111260.0,111250.0,0.00013524]
[1757127993740,0.84821,111260.0,111250.0,0.00113524]
[1757127994439,0.84821,111260.0,111250.0,0.00313524]
[1757127995934,0.03497,111260.0,111250.0,0.00313524]
[1757127996133,0.84821,111260.0,111250.0,0.00313524]
[1757128000444,0.84825,111260.0,111250.0,0.00313524]
[1757128002548,0.03497,111260.0,111250.0,0.00313524]
[1757128002846,0.84825,111260.0,111250.0,0.00313524]
[1757128015259,1.0722276,111260.0,111250.0,0.00313524]
[1757128016752,1.3222276,111260.0,111250.0,0.00313524]
[1757128016947,1.3222676,111260.0,111250.0,0.00313524]
[1757128019260,0.5089476,111260.0,111250.0,0.00313524]
[1757128019560,1.3222676,111260.0,111250.0,0.00313524]
[1757128020560,0.5089476,111260.0,111250.0,0.00313524]
[1757128020759,1.3222676,111260.0,111250.0,0.00313524]
[1757128021057,1.09829,111260.0,111250.0,0.00313524]
[1757128021264,1.3222676,111260.0,111250.0,0.00313524]
[1757128021862,1.09829,111260.0,111250.0,0.00313524]
[1757128022057,1.3222676,111260.0,111250.0,0.00313524]
[1757128022964,0.5089476,111260.0,111250.0,0.00313524]
[1757128023155,1.34399112,111260.0,111250.0,0.00313524]
[1757128025058,1.09399112,111260.0,111250.0,0.00313524]
[1757128025252,0.01343,111240.0,111230.0,0.00271]
[1757128025459,0.84918,111240.0,111230.0,0.00261]
[1757128026159,0.03586,111230.0,111220.0,0.00261]
[1757128026363,0.04487113,111230.0,111220.0,0.2265876]
[1757128027465,0.29709797,111230.0,111210.0,0.08035084]
[1757128027669,1.10144684,111220.0,111210.0,0.00261]
[1757128027870,1.10144684,111220.0,111210.0,0.25483684]
[1757128028073,0.03586,111220.0,111210.0,0.25483684]
[1757128028371,0.84922,111220.0,111210.0,0.25483684]
[1757128028572,0.84922,111220.0,111210.0,0.25883684]
[1757128029275,1.10144684,111220.0,111210.0,0.26183684]
[1757128029472,0.84922,111220.0,111210.0,0.26183684]
[1757128029669,0.84922,111220.0,111210.0,0.00961]
[1757128029874,1.10144684,111220.0,111210.0,0.007]
[1757128031570,1.35144684,111220.0,111210.0,0.006]
[1757128031772,1.35144684,111220.0,111210.0,0.002]
[1757128031979,1.35144684,111220.0,111210.0,0.004]
[1757128032673,1.35144684,111220.0,111210.0,0.002]
[1757128032869,1.35144684,111220.0,111210.0,0.003]
[1757128033471,1.35144684,111220.0,111210.0,0.001]
[1757128033673,1.35144684,111220.0,111210.0,0.002]
[1757128035279,1.60367368,111220.0,111210.0,0.002]
[1757128035480,0.01363,111200.0,111190.0,0.00591]
[1757128035680,0.01363,111190.0,111180.0,0.25803684]
[1757128035974,0.28858684,111190.0,111180.0,0.25803684]
[1757128036479,1.10206684,111190.0,111180.0,0.25803684]
[1757128037073,1.10206684,111190.0,111180.0,0.00581]
[1757128037278,1.10206684,111190.0,111180.0,0.25803684]
[1757128037672,1.10206684,111190.0,111180.0,0.26203684]
[1757128038480,1.10206684,111190.0,111180.0,0.26503684]
[1757128038877,1.10206684,111190.0,111180.0,0.01281]
[1757128039274,1.10206684,111190.0,111180.0,0.26503684]
[1757128040280,1.10206684,111190.0,111180.0,0.01281]
[1757128040471,1.10206684,111190.0,111180.0,0.26503684]
[1757128042176,1.10206684,111190.0,111180.0,0.01281]
[1757128042479,1.10206684,111190.0,111180.0,0.26503684]
[1757128044676,0.28858684,111190.0,111180.0,0.26503684]
[1757128045080,0.82534684,111190.0,111180.0,0.26503684]
[1757128046484,0.85004,111190.0,111180.0,0.26503684]
[1757128046780,1.10226684,111190.0,111180.0,0.26503684]
[1757128050681,0.28858684,111190.0,111180.0,0.26503684]
[1757128050888,1.10226684,111190.0,111180.0,0.26503684]
[1757128052988,0.28858684,111190.0,111180.0,0.26503684]
[1757128053175,1.10230684,111190.0,111180.0,0.26503684]
[1757128055091,0.85008,111190.0,111180.0,0.26503684]
[1757128055290,1.10230684,111190.0,111180.0,0.26503684]
[1757128058794,0.03636,111190.0,111180.0,0.26503684]
[1757128058994,1.10230684,111190.0,111180.0,0.26503684]
[1757128059903,0.03636,111190.0,111180.0,0.51726368]
[1757128060092,0.01363,111190.0,111180.0,0.51726368]
[1757128060300,0.01363,111190.0,111180.0,0.76726368]
[1757128060595,0.01383,111200.0,111180.0,0.76726368]
[1757128060596,0.11343,111200.0,111180.0,0.76726368]
[1757128060798,0.13616,111200.0,111190.0,0.25803684]
[1757128060998,0.13596,111200.0,111190.0,0.25803684]
[1757128061492,0.03636,111200.0,111190.0,0.25803684]
[1757128062196,0.82816524,111210.0,111190.0,0.50803684]
[1757128062498,0.85089524,111210.0,111200.0,0.25803684]
[1757128062692,0.85069524,111210.0,111200.0,0.25803684]
[1757128063902,0.85069524,111210.0,111200.0,0.00581]
[1757128064105,0.85069524,111210.0,111200.0,0.25803684]
[1757128064403,0.85069524,111210.0,111200.0,0.25903684]
[1757128065602,0.85069524,111210.0,111200.0,0.26003684]
[1757128066595,0.01376524,111210.0,111200.0,0.26003684]
[1757128066801,0.00013524,111210.0,111200.0,0.51003684]
[1757128070199,0.03622524,111210.0,111200.0,0.51003684]
[1757128080009,0.53845208,111210.0,111200.0,0.00781]
[1757128080213,0.53845208,111210.0,111200.0,0.002]
[1757128080513,0.53845208,111210.0,111200.0,0.26003684]
[1757128082512,0.53845208,111210.0,111200.0,0.00781]
[1757128082816,0.28622524,111210.0,111200.0,0.00781]
[1757128083006,0.53845208,111210.0,111200.0,0.00781]
[1757128086413,0.53845208,111210.0,111200.0,0.002]
[1757128087010,0.28622524,111210.0,111200.0,0.002]
[1757128087207,0.53845208,111210.0,111200.0,0.002]
[1757128088420,0.53845208,111210.0,111200.0,0.00781]
[1757128088618,0.53845208,111210.0,111200.0,0.002]
[1757128089411,0.51053751,111210.0,111200.0,0.002]
[1757128089917,0.28622524,111210.0,111200.0,0.002]
[1757128092025,0.51053751,111210.0,111200.0,0.002]
[1757128097028,0.28622524,111210.0,111200.0,0.00781]
[1757128097333,0.51053751,111210.0,111200.0,0.00781]
[1757128097532,0.28622524,111210.0,111200.0,0.00781]
[1757128098331,0.03622524,111210.0,111200.0,0.23212227]
[1757128098536,0.85026524,111210.0,111200.0,0.00781]
[1757128098735,0.85026524,111210.0,111200.0,0.23212227]
[1757128099238,0.85026524,111210.0,111200.0,0.00781]
[1757128099432,0.85026524,111210.0,111200.0,0.002]
[1757128100033,0.85026524,111210.0,111200.0,0.00781]
[1757128100838,0.85026524,111210.0,111200.0,0.002]
[1757128103938,1.07457751,111210.0,111200.0,0.002]
[1757128107337,1.07457751,111210.0,111200.0,0.00781]
[1757128107536,0.85026524,111210.0,111200.0,0.00781]
[1757128109843,0.03622524,111210.0,111200.0,0.00781]
[1757128110042,0.85130524,111210.0,111200.0,0.00781]
[1757128113447,0.03622524,111210.0,111200.0,0.23212227]
[1757128113749,0.85114524,111210.0,111200.0,0.23212227]
[1757128113934,0.85114524,111210.0,111200.0,0.00781]
[1757128114839,0.03622524,111210.0,111200.0,0.00781]
[1757128115038,0.85106524,111210.0,111200.0,0.00781]
[1757128115645,0.03622524,111210.0,111200.0,0.00781]
[1757128115846,0.85138524,111210.0,111200.0,0.00781]
[1757128117335,0.03622524,111210.0,111200.0,0.00781]
[1757128117541,0.03622524,111210.0,111200.0,0.48212227]
[1757128117736,0.03622524,111210.0,111200.0,0.56247311]
[1757128118448,0.01295524,111210.0,111200.0,0.56247311]
[1757128118744,0.00013524,111210.0,111200.0,0.56247311]
[1757128118950,0.03494524,111210.0,111200.0,0.56247311]
[1757128119349,0.03494524,111210.0,111200.0,0.31247311]
[1757128147273,0.03494524,111210.0,111200.0,0.34549849]
[1757128147570,0.03494524,111210.0,111200.0,0.23212227]
[1757128149671,0.03494524,111210.0,111200.0,1.04612227]
[1757128150074,0.03494524,111210.0,111200.0,1.15949849]
[1757128151569,0.03494524,111210.0,111200.0,1.18743532]
[1757128153174,0.03494524,111210.0,111200.0,1.26783537]
[1757128153374,0.03494524,111210.0,111200.0,1.15445915]
[1757128153964,0.03494524,111210.0,111200.0,1.16323593]
[1757128154169,0.03494524,111210.0,111200.0,1.15445915]
[1757128166281,0.03494524,111210.0,111200.0,1.0740591]
[1757128166476,0.03494524,111210.0,111200.0,1.18743532]
[1757128170380,0.03494524,111210.0,111200.0,0.37343532]
[1757128170682,0.03494524,111210.0,111200.0,1.18719532]
[1757128177985,0.00013524,111210.0,111200.0,1.43944442]
[1757128178284,0.00013524,111210.0,111200.0,1.3260682]
[1757128178985,0.00013524,111210.0,111200.0,1.43944442]
[1757128180577,0.00013524,111210.0,111200.0,1.43844442]
[1757128180778,0.00013524,111210.0,111200.0,1.43944442]
[1757128180986,0.00013524,111210.0,111200.0,1.43844442]
[1757128181186,0.00013524,111210.0,111200.0,1.44044442]
[1757128182479,0.00013524,111210.0,111200.0,1.43944442]
[1757128182678,0.00013524,111210.0,111200.0,1.44044442]
[1757128183385,0.00013524,111210.0,111200.0,1.3270682]
[1757128184487,0.00013524,111210.0,111200.0,0.5133082]
[1757128184687,0.00013524,111210.0,111200.0,1.3272682]
[1757128184992,0.00013524,111210.0,111200.0,0.82277]
[1757128185188,0.00013524,111210.0,111200.0,1.3272682]
[1757128187489,0.00013524,111210.0,111200.0,1.44064442]
[1757128190493,0.03719524,111210.0,111200.0,1.44068442]
[1757128190893,0.03719524,111210.0,111200.0,1.18843532]
[1757128191494,0.03719524,111210.0,111200.0,1.18835532]
[1757128191890,0.01402524,111210.0,111200.0,1.18835532]
[1757128192097,0.01402524,111210.0,111200.0,1.18635532]
[1757128196499,0.01402524,111210.0,111200.0,1.26662637]
[1757128196696,0.01402524,111210.0,111200.0,1.15325015]
[1757128198100,0.01402524,111210.0,111200.0,1.0729791]
[1757128199798,0.01402524,111210.0,111200.0,1.18635532]
[1757128199999,0.01402524,111210.0,111200.0,1.27627602]
[1757128201299,0.03719524,111210.0,111200.0,0.37243532]
[1757128201601,0.03719524,111210.0,111200.0,1.18615532]
[1757128202702,0.03719524,111210.0,111200.0,0.37243532]
[1757128202904,0.03719524,111210.0,111200.0,1.18615532]
[1757128206903,0.03719524,111210.0,111200.0,0.93390622]
[1757128207099,0.03719524,111210.0,111200.0,1.18615532]
[1757128211404,0.03719524,111210.0,111200.0,1.15813263]
[1757128213197,0.03719524,111210.0,111200.0,1.04475641]
[1757128214199,0.00013524,111210.0,111200.0,1.04475641]
[1757128214904,0.01402524,111210.0,111200.0,1.04475641]
[1757128219508,0.00013524,111210.0,111200.0,1.04475641]
[1757128220105,0.00013524,111210.0,111200.0,1.15813263]
[1757128220498,0.01300524,111210.0,111200.0,1.15813263]
[1757128221202,0.01300524,111210.0,111200.0,1.15713263]
[1757128221410,0.01300524,111210.0,111200.0,1.15813263]
[1757128223109,0.01300524,111210.0,111200.0,1.15713263]
[1757128228115,0.03549524,111210.0,111200.0,0.34341263]
[1757128228307,0.03549524,111210.0,111200.0,1.15709263]
[1757128233924,0.03549524,111210.0,111200.0,0.34341263]
[1757128234127,0.03549524,111210.0,111200.0,1.15709263]
[1757128234524,0.03549524,111210.0,111200.0,0.34341263]
[1757128234724,0.03549524,111210.0,111200.0,1.15709263]
[1757128239033,0.01300524,111210.0,111200.0,1.15709263]
[1757128243233,0.01300524,111210.0,111200.0,0.34341263]
[1757128243434,0.01300524,111210.0,111200.0,1.15709263]
[1757128246536,0.01300524,111210.0,111200.0,1.04371641]
[1757128247936,0.01300524,111210.0,111200.0,1.15709263]
[1757128249440,0.03549524,111210.0,111200.0,0.34341263]
[1757128249638,0.03549524,111210.0,111200.0,1.15385263]
[1757128250437,0.03549524,111210.0,111200.0,0.34341263]
[1757128250638,0.03549524,111210.0,111200.0,1.15709263]
[1757128252334,0.03549524,111210.0,111200.0,1.04371641]
[1757128253232,0.03549524,111210.0,111200.0,1.15709263]
[1757128255744,0.03549524,111210.0,111200.0,1.04371641]
[1757128256543,0.03549524,111210.0,111200.0,1.15709263]
[1757128258543,0.03549524,111210.0,111200.0,0.34341263]
[1757128258843,0.03549524,111210.0,111200.0,1.15709263]
[1757128259945,0.03549524,111210.0,111200.0,1.12408145]
[1757128264946,0.03549524,111210.0,111200.0,1.12404145]
[1757128266347,0.03549524,111210.0,111200.0,0.31040145]
[1757128266547,0.03549524,111210.0,111200.0,1.01972145]
[1757128267747,0.01300524,111210.0,111200.0,1.01972145]
[1757128267949,0.00013524,111210.0,111200.0,1.01972145]
[1757128268947,0.01319524,111210.0,111200.0,1.01972145]
[1757128270048,0.03503524,111210.0,111200.0,0.93935641]
[1757128270249,0.03503524,111210.0,111200.0,1.01972345]
[1757128271450,0.03503524,111210.0,111200.0,0.93935641]
[1757128273054,0.03503524,111210.0,111200.0,0.71513]
[1757128273348,0.03503524,111210.0,111200.0,0.93935641]
[1757128273550,0.03503524,111210.0,111200.0,0.96738242]
[1757128275250,0.03503524,111210.0,111200.0,0.25806242]
[1757128275452,0.03503524,111210.0,111200.0,1.07198242]
[1757128278052,0.03503524,111210.0,111200.0,1.07190242]
[1757128280354,0.03503524,111210.0,111200.0,1.18527864]
[1757128281050,0.03503524,111210.0,111200.0,1.26564735]
[1757128281358,0.03503524,111210.0,111200.0,1.15227113]
[1757128282856,0.03503524,111210.0,111200.0,0.33843113]
[1757128283056,0.03503524,111210.0,111200.0,1.15251113]
[1757128283457,0.03503524,111210.0,111200.0,0.33843113]
[1757128283657,0.03503524,111210.0,111200.0,1.15251113]
[1757128291164,0.03503524,111210.0,111200.0,1.07214242]
[1757128291357,0.03503524,111210.0,111200.0,0.37143864]
[1757128291764,0.03503524,111210.0,111200.0,1.18627864]
[1757128292565,0.03503524,111210.0,111200.0,0.93402622]
[1757128292763,0.03503524,111210.0,111200.0,1.18627864]
[1757128293360,0.03503524,111210.0,111200.0,1.18631864]
[1757128299070,0.03503524,111210.0,111200.0,0.37143864]
[1757128299271,0.03503524,111210.0,111200.0,1.18635864]
[1757128299571,0.03503524,111210.0,111200.0,1.18627864]
[1757128301767,0.03503524,111210.0,111200.0,0.11918622]
[1757128301975,0.28728766,111210.0,111200.0,0.1995557]
[1757128302176,0.78954008,111210.0,111200.0,0.00581]
[1757128302373,0.53728766,111210.0,111200.0,0.00581]
[1757128307494,0.53728766,111210.0,111190.0,0.25225242]
[1757128307776,0.28902242,111200.0,111190.0,0.25806242]
[1757128309777,0.28902242,111200.0,111190.0,0.26006242]
[1757128311771,0.28902242,111200.0,111190.0,0.26106242]
[1757128313076,0.28902242,111200.0,111190.0,0.3414319]
[1757128315082,0.28902242,111200.0,111190.0,1.1570719]
[1757128315284,0.03677,111200.0,111190.0,1.1570719]
[1757128315478,0.28902242,111200.0,111190.0,1.1570319]
[1757128316985,0.28902242,111200.0,111190.0,0.90477948]
[1757128317182,0.28902242,111200.0,111190.0,1.1570319]
[1757128319989,0.29102242,111200.0,111190.0,1.1560319]
[1757128320986,0.29402242,111200.0,111190.0,1.1540319]
[1757128322988,0.29402242,111200.0,111190.0,0.3384319]
[1757128323183,0.29402242,111200.0,111190.0,1.1538719]
[1757128330287,0.29402242,111200.0,111190.0,0.3384319]
[1757128330492,0.29402242,111200.0,111190.0,0.08617948]
[1757128330687,0.29402242,111200.0,111190.0,0.00581]
[1757128331088,0.29402242,111200.0,111190.0,0.25806242]
[1757128332296,0.29402242,111200.0,111190.0,0.00581]
[1757128332494,0.29402242,111200.0,111190.0,0.25806242]
[1757128333097,0.29402242,111200.0,111190.0,0.00581]
[1757128335498,0.26610955,111200.0,111190.0,0.00581]
[1757128340404,0.26610955,111200.0,111180.0,0.08036948]
[1757128340704,0.03519,111190.0,111180.0,0.08617948]
[1757128341406,0.03519,111190.0,111180.0,0.00581]
[1757128342907,0.03819,111190.0,111180.0,0.00581]
[1757128347118,0.03819,111190.0,111180.0,0.08617948]
[1757128347314,0.03819,111190.0,111180.0,0.00581]
[1757128348319,0.03819,111190.0,111180.0,0.08617948]
[1757128348521,0.03819,111190.0,111180.0,0.00581]
[1757128349220,0.03819,111190.0,111180.0,0.08617948]
[1757128349420,0.03819,111190.0,111180.0,0.00581]
[1757128350118,0.03819,111190.0,111180.0,0.08617948]
[1757128352927,0.03819,111190.0,111180.0,0.00581]
[1757128353626,0.03819,111190.0,111180.0,0.08617948]
[1757128371836,0.03819,111190.0,111180.0,0.31051903]
[1757128372032,0.01563,111190.0,111180.0,0.31051903]
[1757128375041,0.03698,111190.0,111180.0,0.23014955]
[1757128385849,0.03698,111190.0,111180.0,0.31051903]
[1757128395454,0.03698,111190.0,111180.0,0.33855371]
[1757128398159,0.28935423,111190.0,111180.0,0.08617948]
[1757128398460,0.28935423,111190.0,111180.0,0.33855371]
[1757128400158,0.03698,111190.0,111180.0,0.33855371]
[1757128400358,0.28935423,111190.0,111180.0,0.33855371]
[1757128423689,0.28935423,111190.0,111180.0,0.08617948]
[1757128423895,0.03698,111190.0,111180.0,0.08617948]
[1757128424189,0.03541,111180.0,111170.0,0.33855371]
[1757128424392,0.28778423,111180.0,111170.0,0.33855371]
[1757128425280,0.28878423,111180.0,111170.0,0.33855371]
[1757128425891,0.28978423,111180.0,111170.0,0.33855371]
[1757128428394,0.28978423,111180.0,111170.0,0.08617948]
[1757128428580,0.28978423,111180.0,111170.0,0.33855371]
[1757128429091,0.28978423,111180.0,111170.0,0.08617948]
[1757128429292,0.29884463,111180.0,111170.0,0.25818423]
[1757128429692,0.03516,111170.0,111160.0,0.08617948]
[1757128430788,0.03516,111170.0,111160.0,0.33855371]
[1757128431090,0.03516,111170.0,111160.0,0.08617948]
[1757128431490,0.03516,111170.0,111160.0,0.33855371]
[1757128445205,0.03516,111170.0,111160.0,0.25818423]
[1757128447413,0.03516,111170.0,111160.0,0.33855371]
[1757128450314,0.03516,111170.0,111160.0,1.07234423]
[1757128451414,0.03516,111170.0,111160.0,1.15271371]
[1757128453216,0.03516,111170.0,111160.0,0.90033948]
[1757128453515,0.03516,111170.0,111160.0,1.15271371]
[1757128457410,0.03516,111170.0,111160.0,1.12472813]
[1757128458518,0.03516,111170.0,111160.0,1.04435865]